[Event "Finnish Senior Championship 2022"]
[Site "Helsinki"]
[Date "2022.04.19"]
[Round "5.3"]
[White "Smeds, Tom"]
[Black "Hietala, Pekka"]
[Result "0-1"]
[ECO "A30"]
[WhiteElo "1863"]
[BlackElo "1925"]
[Annotator "TA"]
[PlyCount "92"]
[EventDate "2022.04.15"]
[EventType "swiss"]
[EventCountry "FIN"]
[SourceTitle "playchess.com"]
[Source "ChessBase"]
[SourceQuality "1"]
[TimeControl "40/5400+30:1800+30"]

{[%evp 13,92,58,76,27,43,-19,-11,-14,0,-3,0,0,33,-22,-24,-33,94,96,96,57,67,66,73,31,112,110,124,127,144,142,176,70,79,86,82,61,395,316,370,377,437,416,413,120,120,80,84,31,66,45,56,71,60,-254,-242,-242,-27,-20,-34,-45,-24,-69,-78,-79,-74,-203,-202,-454,-108,-115,-107,-142,-125,-5365,-2016,-6805,-6805,-5597,-5597,-5106,-1611]} 1. Nf3 {[%emt 0:00:05]} d5 {[%emt 0:00:23]} 2. g3 {[%emt 0:00:11]} c5 {[%emt 0:01:20]} 3. Bg2 {[%emt 0:00:09]} Nc6 {[%emt 0:01:23]} 4. d4 {[%emt 0:00:17]} Nf6 {[%emt 0:06:12]} 5. O-O {[%emt 0:00:29]} Bf5 {[%emt 0:03:42]} 6. c4 {[%emt 0:06:57]} e6 {[%emt 0:05:05]} 7. cxd5 {[%emt 0:01:45]} Nxd5 {[%emt 0:04:40]} 8. a3 {[%emt 0:04:03] Inhibits Ndb4. A30: Symmetrical English: Double Fianchetto and Hedgehog.} (8. Ne5 $16 Ndb4 9. Nxc6 Nxc6 10. e4) 8... Be7 {[%emt 0:02:23] [#]} 9. Nc3 $146 {[%emt 0:02:06]} (9. Ne5 $14 Nxe5 10. dxe5) ({Predecessor:} 9. dxc5 Bxc5 10. Bg5 f6 11. Bd2 O-O 12. Qa4 Nb6 13. Qb5 Qd6 14. Nc3 Rfd8 15. Rac1 {½-½ (49) Goksel,D (2263)-Mikhalchishin,A (2528) Kocaeli 2008}) 9... Nxc3 $11 {[%emt 0:03:14]} 10. bxc3 {[%emt 0:00:11] The position is equal.} O-O {[%emt 0:00:58]} 11. Bf4 {[%emt 0:02:08]} Qa5 {[%emt 0:04:17]} 12. Qb3 {[%emt 0:01:16]} Qa6 {[%emt 0:01:48]} 13. Rfe1 {[%emt 0:01:38]} (13. a4 $14) 13... Na5 {[%emt 0:00:56]} 14. Qa2 {[%emt 0:00:27]} c4 {[%emt 0:01:57]} (14... Be4 $15 {keeps the upper hand.}) 15. e4 $16 {[%emt 0:00:17]} Bg6 {[%emt 0:02:24]} 16. Nd2 {[%emt 0:00:46] Prevents Nb3.} Rac8 {[%emt 0:01:04]} 17. a4 {[%emt 0:05:47]} f6 {[%emt 0:04:10]} 18. Be3 {[%emt 0:24:12]} Qc6 {[%emt 0:06:22]} ({Black should try} 18... e5 $14) 19. e5 {[%emt 0:02:59]} Qa6 {[%emt 0:02:54]} 20. exf6 {[%emt 0:00:59]} Bxf6 {[%emt 0:01:19]} 21. Bf4 {[%emt 0:01:34]} Rfe8 {[%emt 0:02:13]} 22. Nf3 {[%emt 0:02:40]} (22. Re3 $18) 22... Nb3 $14 {[%emt 0:02:16]} 23. Rad1 {[%emt 0:00:13]} b5 {[%emt 0:01:02]} 24. Ne5 {[%emt 0:06:08]} Bf7 {[%emt 0:05:32][%mdl 8192]} ({Black should play} 24... Bf5 $14) 25. Nxf7 $18 {[%emt 0:01:12]} Kxf7 {[%emt 0:00:03]} 26. Qe2 {[%emt 0:00:42]} g6 {[%emt 0:05:08]} 27. Be5 {[%emt 0:00:46]} Bxe5 {[%emt 0:07:12]} 28. axb5 $2 {[%emt 0:00:09]} ({Less strong is} 28. dxe5 Rc7 $16) (28. Qxe5 $18 {Strongly threatening d5.} Rcd8 29. Qc7+ Kg8 30. axb5 Qxb5 31. Bc6) 28... Qxb5 $16 {[%emt 0:00:29] [#] aiming for ...Bf6.} 29. dxe5 {[%emt 0:00:45]} Rc7 {[%emt 0:02:33]} 30. Qf3+ {[%emt 0:03:12]} (30. Qg4 $16) 30... Kg8 {[%emt 0:00:51]} 31. Rd6 {[%emt 0:02:29]} Nc5 {[%emt 0:03:33]} 32. h4 {[%emt 0:01:38]} Nd3 {[%emt 0:00:29]} 33. Re4 {[%emt 0:07:02][%mdl 8192]} (33. Re2 $14) 33... Rf7 $19 {[%emt 0:03:32]} ({Don't do} 33... Nxe5 34. Qe2 Nf7 35. Rdxe6 Rxe6 36. Rxe6 $16) 34. Qe3 {[%emt 0:02:54]} Nxf2 {[%emt 0:01:37]} (34... Qb1+ $19 35. Kh2 Rxf2 36. Rxd3 Qf1 37. Qxf2 Qxf2) 35. Rf4 $11 {[%emt 0:00:32]} Rxf4 {[%emt 0:01:40]} 36. Qxf4 {[%emt 0:00:22]} Rf8 {[%emt 0:01:18]} 37. Qd4 {[%emt 0:00:57]} Qb1+ {[%emt 0:03:43]} 38. Kh2 {[%emt 0:00:10]} Qf5 $36 {[%emt 0:03:42][%mdl 2048] [#] White must now prevent ...Ng4+. Black is really pushing. Black is much more active.} 39. Rd8 {[%emt 0:08:37]} (39. Qf4 $17) 39... Ng4+ $19 {[%emt 0:02:45]} 40. Kg1 $2 {[%emt 0:00:11]} (40. Kh3 Nxe5+ 41. Kh2) 40... Rxd8 $2 {[%emt 0:03:13]} (40... Qb1+ $19 41. Qd1 Qb6+ 42. Rd4 Ne3) 41. Qxd8+ $17 {[%emt 0:30:07]} Kg7 {[%emt 0:02:48]} 42. Qd7+ {[%emt 0:00:00]} Kh6 {[%emt 0:01:42]} 43. Qxa7 {[%emt 0:00:00][%mdl 8192]} (43. Qd2+ $17 g5 44. Bf3) 43... Qxe5 $19 {[%emt 0:00:33] Black is clearly winning.} 44. Qd4 {[%emt 0:00:00]} Qxd4+ {[%emt 0:03:47]} 45. cxd4 {[%emt 0:00:00]} c3 {[%emt 0:00:01] ( -> ...c2)} 46. Be4 {[%emt 0:00:00]} Ne3 {[%emt 0:00:02] What a bad dream for White.  Weighted Error Value: White=0.91/Black=0.56} 0-1

[Event "Finnish Senior Championship 2022"]
[Site "Helsinki"]
[Date "2022.04.20"]
[Round "6.1"]
[White "Lehtela, Antti"]
[Black "Binham, Timothy F."]
[Result "0-1"]
[ECO "A40"]
[WhiteElo "1632"]
[BlackElo "2275"]
[Annotator "TA"]
[PlyCount "78"]
[EventDate "2022.04.15"]
[EventType "swiss"]
[EventCountry "FIN"]
[SourceTitle "playchess.com"]
[Source "ChessBase"]
[SourceQuality "1"]
[TimeControl "40/5400+30:1800+30"]

{[%evp 9,78,0,11,10,8,0,4,9,18,-8,4,3,0,0,26,7,21,11,5,10,6,-9,0,-17,-8,-17,-10,-39,-11,-14,-4,-52,-69,-27,-18,-48,0,0,0,-65,-2,-2,-4,0,0,0,0,0,0,-29,0,0,18,-441,-433,-433,-425,-589,-525,-1068,-1056,-1033,-1022,-6470,-6790,-6211,-6211,-5473,-5417,-1464,-1393]} 1. d4 {[%emt 0:00:03]} e6 {[%emt 0:00:09]} 2. c4 {[%emt 0:00:13]} b6 {[%emt 0:00:05]} 3. Nc3 {[%emt 0:00:26]} Bb7 {[%emt 0:00:08]} 4. Nf3 {[%emt 0:01:05]} Bb4 {[%emt 0:00:45]} 5. Qc2 {[%emt 0:03:35]} f5 {[%emt 0:01:40]} 6. Bd2 {[%emt 0:02:14] A40: Unusual replies to 1 d4.} Nf6 {[%emt 0:00:29]} 7. a3 {[%emt 0:02:00]} Bxc3 {[%emt 0:00:41]} 8. Bxc3 {[%emt 0:00:27] The position is equal.} O-O {[%emt 0:00:08]} 9. g3 {[%emt 0:04:08]} Ne4 {[%emt 1:30:55]} (9... Be4 $5 {[%cal Re4c2]} 10. Qa4 a5 $11) 10. Bg2 {[%emt 1:21:19]} Nxc3 {[%emt 0:00:00]} 11. Qxc3 {[%emt 0:00:00]} Qf6 {[%emt 0:00:00] [#]} 12. e3 $146 {[%emt 0:00:00]} ({Predecessor:} 12. O-O Be4 13. Ne5 Bxg2 14. Kxg2 d6 15. Nd3 Nd7 16. Rac1 Rf7 17. b4 g5 18. f4 {½-½ (34) Zarpellon,D (1980)-Bordignon,A (1962) Chioggia 2016}) 12... Be4 {[%emt 0:00:00]} 13. O-O {[%emt 0:00:00]} d6 {[%emt 0:00:00]} 14. Rad1 {[%emt 0:00:00]} Nd7 {[%emt 0:00:00]} 15. Rd2 {[%emt 0:00:00]} Rae8 {[%emt 0:00:00]} 16. Rc1 {[%emt 0:00:00][%cal Oc4c5]} g5 {[%emt 0:00:00]} 17. b4 {[%emt 0:00:00]} Re7 {[%emt 0:00:00]} 18. Qb3 {[%emt 0:00:00]} Qg6 {[%emt 0:00:00]} 19. c5 {[%emt 0:00:00]} Nf6 {[%emt 0:00:00]} 20. cxd6 {[%emt 0:00:00]} (20. Ne1 $11) 20... cxd6 $15 {[%emt 0:00:00]} 21. Qd1 {[%emt 0:00:00]} Nd5 {[%emt 0:00:00]} 22. Ne1 {[%emt 0:00:00]} Bxg2 {[%emt 0:00:00]} (22... h5 $15 {is more appropriate.}) 23. Nxg2 $11 {[%emt 0:00:00]} f4 {[%emt 0:00:00]} 24. Qc2 {[%emt 0:00:00]} (24. exf4 $11 gxf4 25. Rdc2) 24... Qh5 {[%emt 0:00:00] &Nero is more active.} (24... Qh6 $1 $15) 25. exf4 $1 {[%emt 0:00:00]} gxf4 {[%emt 0:00:00]} 26. Qe4 {[%emt 0:00:00]} Nf6 {[%emt 0:00:00][%cal Bd5f6,Bf6g4,Bg4e3][%mdl 32]} 27. Qe1 {[%emt 0:01:28]} Ng4 {[%emt 0:00:00]} 28. Nh4 {[%emt 0:01:34]} Qd5 {[%emt 0:00:00]} 29. Qd1 {[%emt 0:01:09]} (29. Ng2 $5 {[%cal Rg2f4]}) 29... Rg7 {[%emt 0:00:00]} 30. Rdc2 {[%emt 0:01:31]} ({But not} 30. h3 Nf6 31. Rd3 h5 $17) 30... Qg5 {[%emt 0:04:15] [#] White must now prevent ...fxg3.} 31. Kh1 $2 {[%emt 0:01:54][%mdl 8192] This costs White the game.} (31. Rc8 $11 {and White has nothing to worry.} Rgf7 32. Qb3) 31... fxg3 $19 {[%emt 0:00:29] Black is clearly winning.} 32. fxg3 {[%emt 0:00:40]} Ne3 {[%emt 0:01:47]} ({Don't go for} 32... Nf2+ $2 33. Rxf2 Rxf2 34. Rc8+ Kf7 35. Ng2 $19 (35. Qe1 $2 Qd2 $19)) 33. Qe1 {[%emt 0:00:23]} Qd5+ {[%emt 0:00:41]} 34. Ng2 {[%emt 0:00:47]} Nxc2 {[%emt 0:00:44]} 35. Rxc2 {[%emt 0:00:02]} Rgf7 {[%emt 0:00:19][%cal Bg7f7,Bf7f2,Bf2d2,Bd2d4][%mdl 32] [#] ( -> ...Rf1+)} 36. Rc1 {[%emt 0:00:53]} Rf2 {[%emt 0:00:56][%csl Gf2][%cal Rd5g2]} 37. Qg1 {[%emt 0:00:01]} Rd2 {[%emt 0:00:17]} 38. Rf1 {[%emt 0:01:08]} Rxf1 {[%emt 0:00:43]} 39. Qxf1 {[%emt 0:00:02]} Rxd4 {[%emt 0:00:39] Weighted Error Value: White=0.71/Black=0.10 (very precise)} 0-1

[Event "Finnish Senior Championship 2022"]
[Site "Helsinki"]
[Date "2022.04.20"]
[Round "6.2"]
[White "Koskinen, Hannu E."]
[Black "Aakio, Seppo"]
[Result "1/2-1/2"]
[ECO "A55"]
[WhiteElo "1746"]
[BlackElo "2051"]
[Annotator "TA"]
[PlyCount "105"]
[EventDate "2022.04.15"]
[EventType "swiss"]
[EventCountry "FIN"]
[SourceTitle "playchess.com"]
[Source "ChessBase"]
[SourceQuality "1"]
[TimeControl "40/5400+30:1800+30"]

{[%evp 14,105,64,47,56,54,55,42,65,47,55,43,54,46,47,45,72,41,64,72,87,73,233,0,32,9,42,31,32,29,20,0,2,0,41,-19,-13,-36,-20,-29,0,-23,0,-12,-13,-23,-16,-32,-22,-57,-53,-63,-62,-76,-67,-78,-56,-71,-66,-172,-166,-166,-183,-164,-179,-158,-37,-89,-75,-84,-20,-21,0,0,-8,-8,0,0,0,0,8,0,0,0,0,0,0,0,0,0,8,0,0,0]} 1. Nf3 {[%emt 0:00:06]} d6 {[%emt 0:01:02]} 2. d4 {[%emt 0:00:05]} c6 {[%emt 0:02:08]} 3. c4 {[%emt 0:00:06]} Nd7 {[%emt 0:02:31]} 4. Nc3 {[%emt 0:00:11]} e5 {[%emt 0:00:45]} 5. e4 {[%emt 0:00:17]} Ngf6 {[%emt 0:01:34]} 6. Be2 {[%emt 0:00:27]} Be7 {[%emt 0:01:51]} 7. O-O {[%emt 0:01:01]} O-O {[%emt 0:00:48]} 8. h3 {[%emt 0:06:54] White is more active.} exd4 {[%emt 0:01:29] A55: Old Indian Defence with Nf3 and e4.} 9. Nxd4 {[%emt 0:00:36]} Nc5 {[%emt 0:00:12]} 10. Qc2 {[%emt 0:00:45]} a5 {[%emt 0:02:35] White is slightly better.} 11. Be3 {[%emt 0:02:23]} Re8 {[%emt 0:00:49] [#]} 12. Bf3 $146 {[%emt 0:01:39]} ({Predecessor:} 12. Rad1 Qc7 13. f4 Bf8 14. Bf3 a4 15. Bf2 g6 16. g4 {1-0 (28) Martinovic,S (2537)-Kozul,Z (2588) Porec 2014}) 12... g6 {[%emt 0:04:36]} 13. Rad1 {[%emt 0:06:19][%cal Od4c6]} Qc7 {[%emt 0:02:40]} 14. b3 {[%emt 0:04:54]} h5 {[%emt 0:01:33]} 15. Rfe1 {[%emt 0:03:21]} Bd7 {[%emt 0:01:08]} 16. Qc1 {[%emt 0:12:10]} Rad8 {[%emt 0:02:15]} 17. Bf4 {[%emt 0:04:11] Threatens to win with e5.} Bc8 $2 {[%emt 0:22:08]} (17... Nh7 $16) 18. Nc2 $2 {[%emt 0:12:12]} (18. e5 $1 $18) 18... Nfd7 {[%emt 0:01:14]} (18... Nh7) 19. Bg5 {[%emt 0:18:54]} Ne5 {[%emt 0:00:59] Hoping for ...Ncd3.} 20. Be2 {[%emt 0:00:43] Against Ncd3} Ne6 {[%emt 0:06:17]} 21. Bxe7 {[%emt 0:02:19]} Qxe7 {[%emt 0:00:21]} 22. f4 {[%emt 0:01:28]} Nd7 {[%emt 0:00:13]} 23. f5 {[%emt 0:02:56]} Nef8 {[%emt 0:02:19]} 24. fxg6 {[%emt 0:02:47]} (24. Rf1 $14) 24... fxg6 $11 {[%emt 0:00:08]} 25. Qf4 {[%emt 0:00:43]} Ne5 {[%emt 0:01:39]} 26. Rf1 {[%emt 0:00:43]} Qg7 {[%emt 0:00:45]} 27. Qf6 {[%emt 0:00:47]} Qc7 {[%emt 0:01:58]} 28. Qf2 {[%emt 0:04:07]} Ne6 {[%emt 0:03:28]} 29. Qe3 {[%emt 0:01:05]} Rf8 {[%emt 0:10:33]} 30. Rxf8+ {[%emt 0:02:11]} Rxf8 {[%emt 0:01:51]} 31. Rf1 {[%emt 0:01:05]} Rxf1+ {[%emt 0:00:42]} 32. Kxf1 {[%emt 0:00:16]} Qf7+ {[%emt 0:02:11]} 33. Qf2 {[%emt 0:00:44]} Nf4 {[%emt 0:02:35]} 34. Ne1 {[%emt 0:02:55]} Kg7 {[%emt 0:03:19][%cal Bg8g7,Bg7f6,Bf6e5][%mdl 32]} 35. Nf3 {[%emt 0:02:08]} Qf6 {[%emt 0:03:52]} ({Much worse is} 35... Nxe2 $6 36. Kxe2 Nxf3 37. Qxf3 $11) 36. Qh4 {[%emt 0:02:22]} ({Better is} 36. Nxe5 $15 Qxe5 37. Qe3) 36... Nxf3 $1 $19 {[%emt 0:02:59]} 37. Qxf6+ {[%emt 0:00:08]} Kxf6 {[%emt 0:00:01]} 38. Bxf3 {[%emt 0:00:35][%mdl 4096] Endgame [#] KBN-KBN} Ke5 $1 {[%emt 0:00:20]} 39. Ke1 {[%emt 0:01:12]} Ne6 {[%emt 0:05:58]} (39... Kd4 $17 40. Nd1 b5 41. cxb5 cxb5) 40. Kd2 {[%emt 0:01:18]} ({White should try} 40. h4 $1 $15) 40... Nd4 $17 {[%emt 0:02:33]} 41. Ke3 {[%emt 0:05:03] [#]} Be6 {[%emt 0:04:47]} (41... h4) (41... h4 $1 $17) 42. h4 $1 $11 {[%emt 0:03:00] The position is equal.} b5 {[%emt 0:06:04]} 43. cxb5 {[%emt 0:01:58]} cxb5 {[%emt 0:00:05]} 44. Ne2 {[%emt 0:05:42]} Nc2+ {[%emt 0:04:32]} 45. Kd2 {[%emt 0:00:55]} Nb4 {[%emt 0:00:15]} 46. Nc3 {[%emt 0:02:19]} Bd7 {[%emt 0:03:49]} 47. a3 {[%emt 0:05:30]} Na6 {[%emt 0:00:11]} 48. Be2 {[%emt 0:01:16]} Nc5 {[%emt 0:02:32][%csl LRb3,LRe4]} 49. Bxb5 {[%emt 0:03:12]} Bxb5 {[%emt 0:02:46]} 50. Nxb5 {[%emt 0:00:02]} Nxb3+ {[%emt 0:00:27]} 51. Ke3 {[%emt 0:01:03]} Nc5 {[%emt 0:00:17]} 52. Nc3 {[%emt 0:00:22]} Ne6 {[%emt 0:03:24]} 53. Ne2 {[%emt 0:00:39] Weighted Error Value: White=0.18 (very precise) /Black=0.21 (precise)} 1/2-1/2

[Event "Finnish Senior Championship 2022"]
[Site "Helsinki"]
[Date "2022.04.20"]
[Round "6.3"]
[White "Hietala, Pekka"]
[Black "Kivipelto, Kaj"]
[Result "0-1"]
[ECO "E91"]
[WhiteElo "1925"]
[BlackElo "2129"]
[Annotator "TA"]
[PlyCount "96"]
[EventDate "2022.04.15"]
[EventType "swiss"]
[EventCountry "FIN"]
[SourceTitle "playchess.com"]
[Source "ChessBase"]
[SourceQuality "1"]
[TimeControl "40/5400+30:1800+30"]

{[%evp 24,96,66,57,72,52,47,33,45,43,62,-40,-18,-41,-39,-73,-50,-99,-96,-158,-158,-155,-155,-170,-62,-204,-192,-197,-151,-153,-6,-177,-172,-151,-124,-260,-266,-422,-333,-500,-481,-667,-652,-1067,-985,-1021,-820,-976,-968,-1092,-1048,-2949,-2570,-29991,-29992,-29992,-4994,-5406,-1737,-1752,-904,-848,-835,-2559,-2371,-1572,-1222,-1656,-1560,-4922,-948,-29966,-29964,-5014,-1245]} 1. c4 {[%emt 0:00:05]} g6 {[%emt 0:00:25]} 2. Nc3 {[%emt 0:00:24]} Bg7 {[%emt 0:00:29]} 3. d4 {[%emt 0:00:35]} Nf6 {[%emt 0:00:21]} 4. e4 {[%emt 0:00:24]} O-O {[%emt 0:00:07]} 5. Nf3 {[%emt 0:00:48]} d6 {[%emt 0:00:07]} 6. Be2 {[%emt 0:00:38]} c5 {[%emt 0:00:34]} 7. d5 {[%emt 0:02:24]} b5 {[%emt 0:00:44]} 8. cxb5 {[%emt 0:03:46]} a6 {[%emt 0:00:33]} 9. O-O {[%emt 0:01:31]} axb5 {[%emt 0:00:23]} 10. Bxb5 {[%emt 0:00:57]} Ba6 {[%emt 0:00:50]} 11. Bxa6 {[%emt 0:01:15]} Nxa6 {[%emt 0:00:55][%cal Bb8a6,Ba6b4,Bb4a2][%mdl 32]} 12. Qe2 {[%emt 0:08:50]} Nd7 {[%emt 0:01:23]} 13. Bf4 {[%emt 0:02:17]} Qc7 {[%emt 0:01:41] E91: King's Indian: Classical: 6 Be2, unusual replies including 6...c5 and 6...Bg4.} 14. Rfe1 {[%emt 0:03:27]} Rfb8 {[%emt 0:22:25]} 15. Rab1 {[%emt 0:02:31]} c4 {[%emt 0:07:40] [#] White is slightly better.} 16. Be3 $146 {[%emt 0:07:21]} ({Predecessor:} 16. e5 dxe5 17. Nxe5 Nxe5 18. Bxe5 Bxe5 19. Qxe5 Qxe5 20. Rxe5 Nb4 21. Re4 Nxa2 22. Rxc4 Nxc3 23. Rxc3 Rxb2 {½-½ (49) Bugaev,A (1889)-Lisenkov,S (1964) Cheliabinsk 2021}) 16... Nb4 {[%emt 0:05:28]} 17. Bd4 {[%emt 0:12:15]} (17. Nd4 $1 $14) 17... Nxa2 $15 {[%emt 0:07:32]} 18. Bxg7 {[%emt 0:02:34]} Kxg7 {[%emt 0:00:27]} 19. Qe3 {[%emt 0:03:17]} Qc5 {[%emt 0:07:49]} 20. Qd2 {[%emt 0:06:39]} (20. Nd4 $15 {should be considered.}) 20... Nb4 $17 {[%emt 0:03:50]} 21. g3 {[%emt 0:03:54]} (21. b3 $142) 21... Nd3 {[%emt 0:00:30]} 22. Re2 {[%emt 0:00:18]} Rb3 {[%emt 0:04:27]} 23. Kg2 {[%emt 0:01:59]} h6 {[%emt 0:03:17]} (23... N7e5 $19 {Threatens to win with ...Nxf3.} 24. Nxe5 dxe5) 24. h4 {[%emt 0:03:08]} (24. Qc2 $1 $15) 24... Rab8 {[%emt 0:04:58]} 25. Nd1 {[%emt 0:00:44]} Nf6 {[%emt 0:02:34]} ({Better is} 25... N7e5 $19 {Hoping for ...Nxf3.} 26. Nxe5 dxe5) 26. Qc2 {[%emt 0:04:41]} Ng4 {[%emt 0:01:52]} (26... Qc8 $17 27. Nd2 Qg4) 27. Nh2 $2 {[%emt 0:03:25]} (27. Nd2 $1 $11) 27... Nge5 $36 {[%emt 0:04:52][%mdl 2048] Black has strong initiative.} 28. f4 {[%emt 0:02:08] Against g5} Nd7 {[%emt 0:00:08] 0x0.001a398f4aa0dp-1022s more active pieces.} 29. Ng4 {[%emt 0:00:43]} (29. Nf3 $17 {was called for.}) 29... Qd4 $19 {[%emt 0:01:04]} 30. Ngf2 {[%emt 0:03:25]} (30. Nh2 $142 Nb4 31. Qd2) 30... Nxf2 {[%emt 0:01:01]} 31. Rxf2 {[%emt 0:00:24]} (31. Nxf2 $142 Nf6 32. g4) 31... Rd3 {[%emt 0:00:51] [#] aiming for ...Nf6.} 32. Nc3 {[%emt 0:00:44]} Qe3 {[%emt 0:00:55] ...Nf6 is the strong threat.} 33. Ne2 {[%emt 0:05:20]} Qxe4+ {[%emt 0:00:26]} 34. Kh3 {[%emt 0:01:09]} Qxd5 {[%emt 0:04:35] Strongly threatening ...Qf5+.} 35. f5 {[%emt 0:01:37]} g5 {[%emt 0:01:20]} 36. Nc3 {[%emt 0:00:41]} Qd4 {[%emt 0:01:42] And now ...Qxh4+ would win.} 37. hxg5 {[%emt 0:00:49]} hxg5 {[%emt 0:00:19] ( -> ...Nf6)} 38. Re1 {[%emt 0:00:43]} Qh4+ {[%emt 0:00:41]} 39. Kg2 {[%emt 0:00:16]} Rxg3+ {[%emt 0:07:13]} (39... Qxg3+ $142 40. Kf1 Rh8 41. Re4 Rh1+ 42. Ke2 Nf6 43. b3 Nxe4 44. f6+ exf6 45. Nd1 Qg4+ 46. Rf3 Qxf3#) 40. Kf1 {[%emt 0:00:09]} Qh1+ {[%emt 0:01:26]} 41. Ke2 {[%emt 0:30:11] [#]} Re3+ $3 {[%emt 0:30:28][%mdl 512]} 42. Kxe3 {[%emt 0:00:15]} Qxe1+ {[%emt 0:01:03]} 43. Re2 {[%emt 0:00:28]} Qg3+ {[%emt 0:00:00]} 44. Kd2 {[%emt 0:00:00]} Qf4+ {[%emt 0:00:00]} 45. Ke1 {[%emt 0:00:00]} Rh8 {[%emt 0:00:00][%cal Rh8h1]} 46. Rf2 {[%emt 0:00:00]} Qe3+ {[%emt 0:00:00]} 47. Ne2 {[%emt 0:00:00]} Ne5 {[%emt 0:00:00]} 48. Qc3 {[%emt 0:00:00]} Qxc3+ {[%emt 0:00:00] Weighted Error Value: White=1.27/Black=0.86} 0-1

[Event "Finnish Senior Championship 2022"]
[Site "Helsinki"]
[Date "2022.04.20"]
[Round "6.4"]
[White "Lyly, Seppo"]
[Black "Patola, Eero"]
[Result "0-1"]
[ECO "B46"]
[WhiteElo "1908"]
[BlackElo "1809"]
[Annotator "TA"]
[PlyCount "92"]
[EventDate "2022.04.15"]
[EventType "swiss"]
[EventCountry "FIN"]
[SourceTitle "playchess.com"]
[Source "ChessBase"]
[SourceQuality "1"]
[TimeControl "40/5400+30:1800+30"]

{[%evp 11,92,5,37,0,1,7,6,0,50,47,271,293,281,254,257,264,277,273,357,277,296,295,296,288,504,270,364,250,393,172,183,171,158,116,152,127,129,136,134,116,118,119,158,35,57,52,57,63,69,52,137,80,85,110,92,0,0,0,757,740,932,932,930,903,4827,12818,5608,11521,5800,4576,12833,11563,12835,12835,1850,0,0,-1160,-1088,-983,-951,-1855,-989]} 1. e4 {[%emt 0:01:27]} c5 {[%emt 0:18:38]} 2. Nc3 {[%emt 0:00:42]} e6 {[%emt 0:00:39]} 3. f4 {[%emt 0:00:40]} Nc6 {[%emt 0:01:17]} 4. Nf3 {[%emt 0:00:20][%cal Bg1f3,Bf3d4,Bd4c6][%mdl 32]} a6 {[%emt 0:00:12]} 5. d4 {[%emt 0:02:27]} cxd4 {[%emt 0:00:34]} 6. Nxd4 {[%emt 0:00:13]} Bb4 {[%emt 0:01:56]} 7. Be2 {[%emt 0:02:28] B46: Sicilian: Taimanov: 5 Nc3 a6.} Nf6 {[%emt 0:01:26]} 8. Bf3 {[%emt 0:00:45]} d5 {[%emt 0:05:49]} 9. e5 {[%emt 0:07:32] [#] The position is equal.} Ne4 $146 {[%emt 0:00:28]} (9... Nd7 $11) ({Predecessor:} 9... Nd7 10. O-O Nb6 11. Nce2 O-O 12. c3 Bc5 13. Kh1 f6 14. Bg4 Qe7 15. Nxc6 bxc6 16. b4 Bxb4 17. cxb4 Qxb4 18. Qb3 Qb5 19. Ba3 Rf7 20. Nd4 {1-0 (20) Langenfeld,S (2054)-Falk,K (1606) Verden 2006}) 10. Nxc6 $14 {[%emt 0:09:55]} Qh4+ {[%emt 0:11:47]} (10... bxc6 11. Bxe4 Bxc3+ 12. bxc3 $16) (10... Bxc3+ $14 11. bxc3 Qc7) 11. g3 $18 {[%emt 0:02:42]} Nxg3 {[%emt 0:05:15]} 12. hxg3 {[%emt 0:00:30]} Qxg3+ {[%emt 0:00:37]} 13. Ke2 {[%emt 0:03:08]} bxc6 {[%emt 0:01:44]} 14. Rg1 {[%emt 0:03:05]} Qh4 {[%emt 0:02:58]} 15. a3 {[%emt 0:09:03]} Bc5 {[%emt 0:05:06] Strongly threatening ...Qf2+.} 16. Be3 {[%emt 0:03:25] Prevents Qf2+.} Bxe3 {[%emt 0:00:47]} 17. Kxe3 {[%emt 0:00:12]} c5 $2 {[%emt 0:01:27]} (17... O-O 18. Qd4 f6) 18. Ne2 {[%emt 0:01:03]} Rb8 {[%emt 0:01:33]} 19. b3 {[%emt 0:01:02]} a5 {[%emt 0:00:36]} (19... Kf8 {is a better defense.} 20. Qd3 Qd8) 20. Qe1 {[%emt 0:01:33]} (20. Rxg7 $142 Kf8 21. Rg2) 20... Qxe1 {[%emt 0:07:44]} 21. Raxe1 {[%emt 0:03:38]} g6 {[%emt 0:02:23]} 22. Rg3 {[%emt 0:02:20]} Ba6 {[%emt 0:00:42]} 23. Rh1 {[%emt 0:03:28]} h5 {[%emt 0:07:29]} 24. f5 {[%emt 0:01:52]} d4+ {[%emt 0:02:16]} 25. Kd2 {[%emt 0:01:14]} exf5 {[%emt 0:00:26]} 26. Nf4 {[%emt 0:01:51]} Bb7 {[%emt 0:02:43]} 27. Bd5 {[%emt 0:10:04]} (27. Bxb7 $1 $16 Rxb7 28. Kd3) 27... Bxd5 $14 {[%emt 0:03:09]} 28. Nxd5 {[%emt 0:00:09]} Kd7 {[%emt 0:00:20]} 29. Nf4 $36 {[%emt 0:00:27][%cal Oe5e6][%mdl 2048] White has some pressure.} Rh6 {[%emt 0:02:38]} 30. e6+ {[%emt 0:00:50]} Ke7 {[%emt 0:01:38] [#]} (30... fxe6 $14 31. Rxg6 (31. Nxg6 Kd6 $14) 31... Rxg6 32. Nxg6 a4) 31. Re1 {[%emt 0:02:08]} (31. Rg2 $142 $1) 31... h4 $16 {[%emt 0:04:40]} 32. Rgg1 {[%emt 0:02:43] Hoping for Nd5+.} h3 {[%emt 0:00:19]} 33. Nd5+ {[%emt 0:00:17]} ({Better is} 33. Rh1 $16) 33... Kd6 $11 {[%emt 0:00:16]} 34. e7 {[%emt 0:03:13] Nf6 is the strong threat.} Re8 $2 {[%emt 0:05:23][%mdl 8192] [#]} (34... g5 $11 35. e8=Q (35. Rxg5 h2 $15) 35... Rxe8 36. Rxe8 Kxd5) 35. Nf6 $1 $18 {[%emt 0:00:32]} ({And not} 35. Nb6 Rh5 $11) 35... Rhh8 {[%emt 0:00:18]} 36. Nxe8+ {[%emt 0:00:18]} Rxe8 {[%emt 0:00:08]} 37. Rh1 {[%emt 0:00:24]} Rxe7 {[%emt 0:01:27]} 38. Rxe7 {[%emt 0:00:38]} Kxe7 {[%emt 0:00:05]} 39. Rxh3 {[%emt 0:00:15][%mdl 4096] Endgame KR-KP} Ke6 {[%emt 0:00:20]} 40. Kd3 {[%emt 0:00:36]} g5 {[%emt 0:00:34]} 41. Kc4 {[%emt 0:30:32]} f4 {[%emt 0:30:25]} 42. Kxc5 {[%emt 0:00:08]} g4 {[%emt 0:01:04]} 43. Rh6+ $2 {[%emt 0:08:57]} ({White should try} 43. Rh1 $18 d3 44. cxd3) 43... Ke5 $11 {[%emt 0:00:52]} 44. Rh1 $2 {[%emt 0:08:16][%mdl 8192]} (44. Rh7 $11 g3 45. Rg7 (45. Rxf7 $2 g2 $19) (45. Rh1 $2 f3 $19)) 44... f3 $19 {[%emt 0:00:00] And now ...f2 would win. Black is clearly winning.} 45. Re1+ {[%emt 0:00:00]} Kf4 {[%emt 0:00:00] White must now prevent ...g3.} 46. Kxd4 {[%emt 0:00:00]} f5 {[%emt 0:00:00] Never resign too early!  Weighted Error Value: White=0.80/Black=0.42} 0-1